Workbook

Sheet Лист1
A1: Школа | F1: Утвердил: | G1: должность | H1: Директор МАУ "МКШП"
A2: Типовое примерное меню приготавливаемых блюд | G2: фамилия | H2: Михин А.С.
A3: Возрастная категория | E3: 7-11 лет | G3: дата | H3: 27 | I3: 2 | J3: 2026
H4: день | I4: месяц | J4: год
A5: Неделя | B5: День недели | C5: Прием пищи | D5: Раздел меню | E5: Блюда | F5: Вес блюда, г | G5: Белки | H5: Жиры | I5: Углеводы | J5: Калорийность | K5: № рецептуры | L5: Цена
A6: 1 | B6: 1 | C6: Завтрак | D6: гор.блюдо | E6: Плов с мясом | F6: 250 | G6: 10.76 | H6: 13 | I6: 16 | J6: 226.83 | K6: 504 | L6: 60.281
D7: гор.напиток
D8: хлеб | E8: Хлеб пшеничный | F8: 30 | G8: 2.13 | H8: 0.21 | I8: 13.26 | J8: 72 | K8: 119 | L8: 1.96
D9: закуска | E9: Огурцы порционные | F9: 60 | G9: 0 | H9: 0 | I9: 2 | J9: 10 | K9: 28 | L9: 8.58
D10: напиток | E10: Компот из сухофруктов | F10: 200 | G10: 0 | H10: 0 | I10: 7 | J10: 30 | K10: 98 | L10: 4.121
D11: хлеб черн. | E11: Хлеб ржаной | F11: 20 | G11: 5.7 | H11: 1.1 | I11: 37.2 | J11: 181.3 | K11: 120 | L11: 1.77
D15: итого | F15: =SUM(F6:F14) -> 560 | G15: 18.59 | H15: 14.31 | I15: 75.46 | J15: 520.13 | L15: =SUM(L6:L14) -> 76.712
A16: 1 | B16: 1 | C16: Обед | D16: закуска
D17: 1 блюдо
D18: 2 блюдо
D19: гарнир
D20: сладкое
D21: хлеб бел.
D22: хлеб черн.
D23: напиток
D28: итого | F28: =SUM(F16:F27) -> 0 | G28: 0 | H28: 0 | I28: 0 | J28: 0 | L28: 0
A29: 1 | B29: 1 | C29: Итого за день: | F29: =F15+F28 -> 560 | G29: 18.59 | H29: 14.31 | I29: 75.46 | J29: 520.13 | L29: 76.712
A30: 1 | B30: 2 | C30: Завтрак | D30: гор.блюдо | E30: Курица запеченная | F30: 90 | G30: 25 | H30: 17 | I30: 0 | J30: 255.3 | K30: 81 | L30: 42.003
D31: гор.напиток
D32: хлеб | E32: Хлеб пшеничный | F32: 30 | G32: 2.13 | H32: 0.21 | I32: 13.26 | J32: 72 | K32: 119 | L32: 1.96
D33: закуска | E33: Фрукты в ассортименте (яблоко свежее) | F33: 150 | G33: 0.4 | H33: 0 | I33: 11.3 | J33: 46 | K33: 24 | L33: 17.745
D34: гор.блюдо | E34: Каша гречневая рассыпчатая с маслом | F34: 150 | G34: 5 | H34: 3 | I34: 23 | J34: 140 | K34: 54 | L34: 7.033
D35: напиток | E35: Компот из смеси фруктов и ягод | F35: 200 | G35: 0 | H35: 0 | I35: 6 | J35: 26 | K35: 216 | L35: 8.619
D36: хлеб черн. | E36: Хлеб ржаной | F36: 20 | G36: 5.7 | H36: 1.1 | I36: 37.2 | J36: 181.3 | K36: 120 | L36: 1.77
D39: итого | F39: =SUM(F30:F38) -> 640 | G39: 38.23 | H39: 21.31 | I39: 90.76 | J39: 720.6 | L39: 79.13
A40: 1 | B40: 2 | C40: Обед | D40: закуска
D41: 1 блюдо
D42: 2 блюдо
D43: гарнир
D44: сладкое
D45: хлеб бел.
D46: хлеб черн.
D47: напиток
D52: итого | F52: =SUM(F40:F51) -> 0 | G52: 0 | H52: 0 | I52: 0 | J52: 0 | L52: 0
A53: 1 | B53: 2 | C53: Итого за день: | F53: =F39+F52 -> 640 | G53: 38.23 | H53: 21.31 | I53: 90.76 | J53: 720.6 | L53: 79.13
A54: 1 | B54: 3 | C54: Завтрак | D54: гор.блюдо | E54: Мясо тушеное | F54: 90 | G54: 15 | H54: 25 | I54: 3 | J54: 294 | K54: 88 | L54: 50.492
D55: гор.напиток | E55: Чай с сахаром | F55: 200 | G55: 0 | H55: 0 | I55: 6 | J55: 14 | K55: 114 | L55: 1.456
D56: хлеб | E56: Хлеб пшеничный | F56: 30 | G56: 2.13 | H56: 0.21 | I56: 13.26 | J56: 72 | K56: 119 | L56: 1.96
D57: закуска | E57: Фрукты в ассортименте (яблоко свежее) | F57: 150 | G57: 0.4 | H57: 0 | I57: 11.3 | J57: 46 | K57: 24 | L57: 17.745
D58: гор.блюдо | E58: Спагетти отварные с маслом | F58: 150 | G58: 4 | H58: 3 | I58: 27 | J58: 149 | K58: 65 | L58: 6.682
D59: хлеб черн. | E59: Хлеб ржаной | F59: 20 | G59: 5.7 | H59: 1.1 | I59: 37.2 | J59: 181.3 | K59: 120 | L59: 1.77
D63: итого | F63: =SUM(F54:F62) -> 640 | G63: 27.23 | H63: 29.31 | I63: 97.76 | J63: 756.3 | L63: =SUM(L54:L62) -> 80.105
A64: 1 | B64: 3 | C64: Обед | D64: закуска
D65: 1 блюдо
D66: 2 блюдо
D67: гарнир
D68: сладкое
D69: хлеб бел.
D70: хлеб черн.
D71: напиток
D76: итого | F76: =SUM(F64:F75) -> 0 | G76: 0 | H76: 0 | I76: 0 | J76: 0 | L76: 0
A77: 1 | B77: 3 | C77: Итого за день: | F77: =F63+F76 -> 640 | G77: 27.23 | H77: 29.31 | I77: 97.76 | J77: 756.3 | L77: =L63+L76 -> 80.105
A78: 1 | B78: 4 | C78: Завтрак | D78: гор.блюдо | E78: Котлета мясная | F78: 90 | G78: 17 | H78: 17 | I78: 8 | J78: 250 | K78: 193 | L78: 38.701
D79: гор.напиток
D80: хлеб | E80: Хлеб пшеничный | F80: 30 | G80: 2.13 | H80: 0.21 | I80: 13.26 | J80: 72 | K80: 119 | L80: 1.96
D81: закуска | E81: Кукуруза консервированная | F81: 60 | G81: 2 | H81: 0 | I81: 15 | J81: 68 | K81: 133 | L81: 18.278
D82: гор.блюдо | E82: Каша гречневая рассыпчатая с маслом | F82: 150 | G82: 5 | H82: 3 | I82: 23 | J82: 140 | K82: 54 | L82: 7.033
D83: хлеб черн. | E83: Хлеб ржаной | F83: 20 | G83: 5.7 | H83: 1.1 | I83: 37.2 | J83: 181.3 | K83: 120 | L83: 1.77
D84: напиток | E84: Сок фруктовый | F84: 200 | G84: 0 | H84: 0 | I84: 17 | J84: 68 | K84: 107 | L84: 11.44
D87: итого | F87: =SUM(F78:F86) -> 550 | G87: 31.83 | H87: 21.31 | I87: 113.46 | J87: 779.3 | L87: =SUM(L78:L86) -> 79.182
A88: 1 | B88: 4 | C88: Обед | D88: закуска
D89: 1 блюдо
D90: 2 блюдо
D91: гарнир
D92: сладкое
D93: хлеб бел.
D94: хлеб черн.
D95: напиток
D99: итого | F99: =SUM(F88:F98) -> 0 | G99: 0 | H99: 0 | I99: 0 | J99: 0 | L99: 0
A100: 1 | B100: 4 | C100: Итого за день: | F100: =F87+F99 -> 550 | G100: 31.83 | H100: 21.31 | I100: 113.46 | J100: 779.3 | L100: 79.182
A101: 1 | B101: 5 | C101: Завтрак | D101: гор.блюдо | E101: Рыба тушенная с овощами | F101: 90 | G101: 14 | H101: 3 | I101: 5 | J101: 103.9 | K101: 75 | L101: 33.267
D102: гор.напиток
D103: хлеб | E103: Хлеб пшеничный | F103: 30 | G103: 2.13 | H103: 0.21 | I103: 13.26 | J103: 72 | K103: 119 | L103: 1.96
D104: закуска | E104: Горошек консервированный | F104: 60 | G104: 3 | H104: 0 | I104: 7 | J104: 41 | K104: 172 | L104: 9.75
D105: напиток | E105: Напиток плодово-ягодный витаминизированный | F105: 200 | G105: 0 | H105: 0 | I105: 7 | J105: 29.2 | K105: 104 | L105: 6.76
D106: хлеб черн. | E106: Хлеб ржаной | F106: 20 | G106: 5.7 | H106: 1.1 | I106: 37.2 | J106: 181.3 | K106: 120 | L106: 1.77
D107: гор.блюдо | E107: Рис отварной с маслом | F107: 150 | G107: 3 | H107: 3 | I107: 27 | J107: 148 | K107: 53 | L107: 12.025
D111: итого | F111: =SUM(F101:F110) -> 550 | G111: =SUM(G102:G110) -> 13.83 | H111: 4.31 | I111: 91.46 | J111: 471.5 | L111: =SUM(L102:L110) -> 32.265
A112: 1 | B112: 5 | C112: Обед | D112: закуска
D113: 1 блюдо
D114: 2 блюдо
D115: гарнир
D116: сладкое
D117: хлеб бел.
D118: хлеб черн.
D119: напиток
D124: итого | F124: =SUM(F112:F123) -> 0 | G124: 0 | H124: 0 | I124: 0 | J124: 0 | L124: 0
A125: 1 | B125: 5 | C125: Итого за день: | F125: =F111+F124 -> 550 | G125: 13.83 | H125: 4.31 | I125: 91.46 | J125: 471.5 | L125: =L111+L124 -> 32.265
A126: 2 | B126: 1 | C126: Завтрак | D126: гор.блюдо | E126: Гуляш | F126: 90 | G126: 18 | H126: 30 | I126: 4 | J126: 368 | K126: 89 | L126: 40.079
D127: гор.напиток
D128: хлеб | E128: Хлеб пшеничный | F128: 30 | G128: 2.13 | H128: 0.21 | I128: 13.26 | J128: 72 | K128: 119 | L128: 1.96
D129: закуска | E129: Горошек консервированный | F129: 60 | G129: 3 | H129: 0 | I129: 7 | J129: 41 | K129: 172 | L129: 9.75
D130: напиток | E130: Компот из смеси фруктов и ягод | F130: 200 | G130: 0 | H130: 0 | I130: 6 | J130: 26 | K130: 216 | L130: 8.619
D131: гор.блюдо | E131: Рис отварной с маслом | F131: 150 | G131: 3 | H131: 3 | I131: 27 | J131: 148 | K131: 53 | L131: 12.025
D132: хлеб черн. | E132: Хлеб ржаной | F132: 20 | G132: 5.7 | H132: 1.1 | I132: 37.2 | J132: 181.3 | K132: 120 | L132: 1.77
D135: итого | F135: =SUM(F126:F134) -> 550 | G135: 31.83 | H135: 34.31 | I135: 94.46 | J135: 836.3 | L135: =SUM(L126:L134) -> 74.203
A136: 2 | B136: 1 | C136: Обед | D136: закуска
D137: 1 блюдо
D138: 2 блюдо
D139: гарнир
D140: сладкое
D141: хлеб бел.
D142: хлеб черн.
D143: напиток
D148: итого | F148: =SUM(F136:F147) -> 0 | G148: 0 | H148: 0 | I148: 0 | J148: 0 | L148: 0
A149: 2 | B149: 1 | C149: Итого за день: | F149: =F135+F148 -> 550 | G149: 31.83 | H149: 34.31 | I149: 94.46 | J149: 836.3 | L149: =L135+L148 -> 74.203
A150: 2 | B150: 2 | C150: Завтрак | D150: гор.блюдо | E150: Котлета мясная | F150: 90 | G150: 17 | H150: 17 | I150: 8 | J150: 250 | K150: 193 | L150: 38.701
D151: гор.напиток
D152: хлеб | E152: Хлеб пшеничный | F152: 30 | G152: 2.13 | H152: 0.21 | I152: 13.26 | J152: 72 | K152: 119 | L152: 1.96
D153: закуска | E153: Фрукты в ассортименте (яблоко свежее) | F153: 150 | G153: 0.4 | H153: 0 | I153: 11.3 | J153: 46 | K153: 24 | L153: 17.745
D154: гор.блюдо | E154: Макароны отварные с маслом | F154: 150 | G154: 4 | H154: 3 | I154: 27 | J154: 149 | K154: 64 | L154: 6.682
D155: напиток | E155: Кисель витаминизированный плодово – ягодный | F155: 200 | G155: 0 | H155: 0 | I155: 2 | J155: 41.2 | K155: 95 | L155: 7.358
D156: хлеб черн. | E156: Хлеб ржаной | F156: 20 | G156: 5.7 | H156: 1.1 | I156: 37.2 | J156: 181.3 | K156: 120 | L156: 1.77
D160: итого | F160: =SUM(F150:F159) -> 640 | G160: 29.23 | H160: 21.31 | I160: 98.76 | J160: 739.5 | L160: 74.216
A161: 2 | B161: 2 | C161: Обед | D161: закуска
D162: 1 блюдо
D163: 2 блюдо
D164: гарнир
D165: сладкое
D166: хлеб бел.
D167: хлеб черн.
D168: напиток
D173: итого | F173: =SUM(F161:F172) -> 0 | G173: 0 | H173: 0 | I173: 0 | J173: 0 | L173: 0
A174: 2 | B174: 2 | C174: Итого за день: | F174: =F160+F173 -> 640 | G174: 29.23 | H174: 21.31 | I174: 98.76 | J174: 739.5 | L174: =L160+L173 -> 74.216
A175: 2 | B175: 3 | C175: Завтрак | D175: гор.блюдо | E175: Бефстроганов | F175: 90 | G175: 17.02 | H175: 17.14 | I175: 3.46 | J175: 236.91 | K175: 90 | L175: 28.95
D176: гор.напиток
D177: хлеб | E177: Хлеб пшеничный | F177: 30 | G177: 2.13 | H177: 0.21 | I177: 13.26 | J177: 72 | K177: 119 | L177: 1.96
D178: закуска | E178: Огурцы порционные | F178: 60 | G178: 0 | H178: 0 | I178: 2 | J178: 10 | K178: 28 | L178: 8.58
D179: гор.блюдо | E179: Каша гречневая рассыпчатая с маслом | F179: 150 | G179: 5 | H179: 3 | I179: 23 | J179: 140 | K179: 54 | L179: 7.033
D180: напиток | E180: Сок фруктовый | F180: 200 | G180: 0 | H180: 0 | I180: 17 | J180: 68 | K180: 107 | L180: 11.44
D181: хлеб черн. | E181: Хлеб ржаной | F181: 20 | G181: 5.7 | H181: 1.1 | I181: 37.2 | J181: 181.3 | K181: 120 | L181: 1.77
D184: итого | F184: =SUM(F175:F183) -> 550 | G184: 29.85 | H184: 21.45 | I184: 95.92 | J184: 708.21 | L184: =SUM(L175:L183) -> 59.733
A185: 2 | B185: 3 | C185: Обед | D185: закуска
D186: 1 блюдо
D187: 2 блюдо
D188: гарнир
D189: сладкое
D190: хлеб бел.
D191: хлеб черн.
D192: напиток
D196: итого | F196: =SUM(F185:F195) -> 0 | G196: 0 | H196: 0 | I196: 0 | J196: 0 | L196: 0
A197: 2 | B197: 3 | C197: Итого за день: | F197: =F184+F196 -> 550 | G197: 29.85 | H197: 21.45 | I197: 95.92 | J197: 708.21 | L197: 59.733
A198: 2 | B198: 4 | C198: Завтрак | D198: гор.блюдо | E198: Биточек из рыбы запеченный | F198: 90 | G198: 16.7 | H198: 11.1 | I198: 16.2 | J198: 231.2 | K198: 149 | L198: 38.21
D199: гор.напиток | E199: Чай с сахаром | F199: 200 | G199: 0 | H199: 0 | I199: 6 | J199: 14 | K199: 114 | L199: 1.456
D200: хлеб | E200: Хлеб пшеничный | F200: 30 | G200: 2.13 | H200: 0.21 | I200: 13.26 | J200: 72 | K200: 119 | L200: 1.96
D201: закуска | E201: Фрукты в ассортименте (яблоко свежее) | F201: 150 | G201: 0.4 | H201: 0 | I201: 11.3 | J201: 46 | K201: 24 | L201: 17.745
D202: гор.блюдо | E202: Картофельное пюре с маслом | F202: 150 | G202: 2 | H202: 5 | I202: 14 | J202: 113 | K202: 50 | L202: 13.416
D203: хлеб черн. | E203: Хлеб ржаной | F203: 20 | G203: 5.7 | H203: 1.1 | I203: 37.2 | J203: 181.3 | K203: 120 | L203: 1.77
D207: итого | F207: =SUM(F198:F206) -> 640 | G207: 26.93 | H207: 17.41 | I207: 97.96 | J207: 657.5 | L207: =SUM(L198:L206) -> 74.557
A208: 2 | B208: 4 | C208: Обед | D208: закуска
D209: 1 блюдо
D210: 2 блюдо
D211: гарнир
D212: сладкое
D213: хлеб бел.
D214: хлеб черн.
D215: напиток
D220: итого | F220: =SUM(F208:F219) -> 0 | G220: 0 | H220: 0 | I220: 0 | J220: 0 | L220: 0
A221: 2 | B221: 4 | C221: Итого за день: | F221: =F207+F220 -> 640 | G221: 26.93 | H221: 17.41 | I221: 97.96 | J221: 657.5 | L221: =L207+L220 -> 74.557
A222: 2 | B222: 5 | C222: Завтрак | D222: гор.блюдо | E222: Мясо тушеное | F222: 90 | G222: 15 | H222: 25 | I222: 3 | J222: 294 | K222: 88 | L222: 50.492
D223: гор.напиток | E223: Чай с сахаром | F223: 200 | G223: 0 | H223: 0 | I223: 6 | J223: 14 | K223: 114 | L223: 1.456
D224: хлеб | E224: Хлеб пшеничный | F224: 30 | G224: 2.13 | H224: 0.21 | I224: 13.26 | J224: 72 | K224: 119 | L224: 1.96
D225: закуска | E225: Кукуруза консервированная | F225: 60 | G225: 2 | H225: 0 | I225: 15 | J225: 68 | K225: 133 | L225: 18.278
D226: гор.блюдо | E226: Спагетти отварные с маслом | F226: 150 | G226: 4 | H226: 3 | I226: 27 | J226: 149 | K226: 65 | L226: 6.682
D227: хлеб черн. | E227: Хлеб ржаной | F227: 20 | G227: 5.7 | H227: 1.1 | I227: 37.2 | J227: 181.3 | K227: 120 | L227: 1.77
D231: итого | F231: =SUM(F222:F230) -> 550 | G231: 28.83 | H231: 29.31 | I231: 101.46 | J231: 778.3 | L231: =SUM(L222:L230) -> 80.638
A232: 2 | B232: 5 | C232: Обед | D232: закуска
D233: 1 блюдо
D234: 2 блюдо
D235: гарнир
D236: сладкое
D237: хлеб бел.
D238: хлеб черн.
D239: напиток
D243: итого | F243: =SUM(F232:F242) -> 0 | G243: 0 | H243: 0 | I243: 0 | J243: 0 | L243: 0
A244: 2 | B244: 5 | C244: Итого за день: | F244: =F231+F243 -> 550 | G244: 28.83 | H244: 29.31 | I244: 101.46 | J244: 778.3 | L244: 80.638
A245: 3 | B245: 1 | C245: Завтрак | D245: гор.блюдо | E245: Филе птицы тушеное в томатном соусе | F245: 90 | G245: 17 | H245: 15 | I245: 7 | J245: 225 | K245: 80 | L245: 34.788
D246: гор.напиток
D247: хлеб | E247: Хлеб пшеничный | F247: 30 | G247: 2.13 | H247: 0.21 | I247: 13.26 | J247: 72 | K247: 119 | L247: 1.96
D248: закуска | E248: Фрукты в ассортименте (яблоко свежее) | F248: 150 | G248: 0.4 | H248: 0 | I248: 11.3 | J248: 46 | K248: 24 | L248: 17.745
D249: гор.блюдо | E249: Каша гречневая рассыпчатая с маслом | F249: 150 | G249: 5 | H249: 3 | I249: 23 | J249: 140 | K249: 54 | L249: 7.033
D250: напиток | E250: Компот из сухофруктов | F250: 200 | G250: 0 | H250: 0 | I250: 7 | J250: 30 | K250: 98 | L250: 4.121
D251: хлеб черн. | E251: Хлеб ржаной | F251: 20 | G251: 5.7 | H251: 1.1 | I251: 37.2 | J251: 181.3 | K251: 120 | L251: 1.77
D254: итого | F254: =SUM(F245:F253) -> 640 | G254: 30.23 | H254: 19.31 | I254: 98.76 | J254: 694.3 | L254: =SUM(L245:L253) -> 67.417
A255: 3 | B255: 1 | C255: Обед | D255: закуска
D256: 1 блюдо
D257: 2 блюдо
D258: гарнир
D259: сладкое
D260: хлеб бел.
D261: хлеб черн.
D262: напиток
D267: итого | F267: =SUM(F255:F266) -> 0 | G267: 0 | H267: 0 | I267: 0 | J267: 0 | L267: 0
A268: 3 | B268: 1 | C268: Итого за день: | F268: =F254+F267 -> 640 | G268: 30.23 | H268: 19.31 | I268: 98.76 | J268: 694.3 | L268: =L254+L267 -> 67.417
A269: 3 | B269: 2 | C269: Завтрак | D269: гор.блюдо | E269: Курица запеченная с сыром | F269: 90 | G269: 26 | H269: 22 | I269: 1 | J269: 306 | K269: 82 | L269: 60.112
... 161 more rows
